bitfinex/quotes_BTCUSD_20250602
["timestamp","ask_amount","ask_price","bid_price","bid_amount"]
[1748903499259,1.04312884,105740.0,105730.0,0.24065971]
[1748903499476,1.04312884,105740.0,105730.0,0.33248202]
[1748903499697,1.06475853,105740.0,105730.0,0.13386299]
[1748903499937,1.20726975,105740.0,105730.0,0.10176299]
[1748903500137,0.00959971,105740.0,105730.0,0.44725143]
[1748903500572,0.58467511,105750.0,105740.0,0.24961384]
[1748903500794,0.36836734,105750.0,105740.0,0.24961384]
[1748903501010,0.04609339,105750.0,105740.0,0.25907037]
[1748903501270,0.38609348,105750.0,105740.0,0.25907037]
[1748903501477,0.39495639,105750.0,105740.0,0.25907037]
[1748903501710,0.39436341,105750.0,105740.0,0.25907037]
[1748903501937,0.37681977,105750.0,105740.0,0.57039037]
[1748903502162,0.37681977,105750.0,105740.0,0.66624467]
[1748903502627,0.38508952,105750.0,105740.0,0.66624467]
[1748903502840,0.38508951,105750.0,105740.0,0.66624467]
[1748903503053,0.42231932,105750.0,105740.0,0.66624467]
[1748903503270,0.4034075,105750.0,105740.0,0.66624467]
[1748903503485,0.83263574,105750.0,105740.0,0.66624467]
[1748903503704,0.86100326,105750.0,105740.0,0.66624467]
[1748903503931,0.86986591,105750.0,105740.0,0.66624467]
[1748903504148,0.85154718,105750.0,105740.0,0.66624467]
[1748903504366,0.86100317,105750.0,105740.0,0.66624467]
[1748903505108,1.05958472,105750.0,105740.0,0.66624467]
[1748903505337,1.05958472,105750.0,105740.0,0.6617942]
[1748903505338,1.06785552,105750.0,105740.0,0.6617942]
[1748903505766,0.87813717,105750.0,105740.0,0.67125091]
[1748903505980,0.87813717,105750.0,105740.0,0.68070744]
[1748903506194,0.88759325,105750.0,105740.0,0.68070744]
[1748903506402,0.87873005,105750.0,105740.0,0.68070744]
[1748903506615,0.89645644,105750.0,105740.0,0.68070744]
[1748903506830,0.87873005,105750.0,105740.0,0.68070744]
[1748903507048,1.0773116,105750.0,105740.0,0.67125091]
[1748903507262,1.0773116,105750.0,105740.0,0.68070753]
[1748903507482,1.095038,105750.0,105740.0,0.26822691]
[1748903507694,1.0773116,105750.0,105740.0,0.68070691]
[1748903508136,1.08617703,105750.0,105740.0,0.67125038]
[1748903508324,0.88759548,105750.0,105740.0,0.68070691]
[1748903508795,0.87873005,105750.0,105740.0,0.68070691]
[1748903509013,0.86927397,105750.0,105740.0,0.68070691]
[1748903509239,0.87873005,105750.0,105740.0,0.68070691]
[1748903509477,0.90591709,105750.0,105740.0,0.68070691]
[1748903509910,0.88818622,105750.0,105740.0,0.68070691]
[1748903510130,1.05840007,105750.0,105740.0,0.66179376]
[1748903510343,1.04894408,105750.0,105740.0,0.66179385]
[1748903510564,1.04894408,105750.0,105740.0,0.33168016]
[1748903510565,1.05780951,105750.0,105740.0,0.33168016]
[1748903510799,1.06667495,105750.0,105740.0,0.65233696]
[1748903511003,0.87695865,105750.0,105740.0,0.66179367]
[1748903511216,0.85036235,105750.0,105740.0,0.6712502]
[1748903511464,0.86809326,105750.0,105740.0,0.6712502]
[1748903511669,1.04894381,105750.0,105740.0,0.6712502]
[1748903512543,0.4394612,105750.0,105740.0,0.6712502]
[1748903512813,0.85981843,105750.0,105740.0,0.6712502]
[1748903513733,0.8686838,105750.0,105740.0,0.6712502]
[1748903513955,0.85863729,105750.0,105740.0,0.6712502]
[1748903514169,0.85981789,105750.0,105740.0,0.6712502]
[1748903514404,0.88641401,105750.0,105740.0,0.6712502]
[1748903514631,1.07672059,105750.0,105740.0,0.6712502]
[1748903514842,0.39395313,105750.0,105740.0,0.3546245]
[1748903515053,0.42054876,105750.0,105740.0,0.7670245]
[1748903515306,0.42054865,105750.0,105740.0,0.7670245]
[1748903515524,0.4116837,105750.0,105740.0,0.7670245]
[1748903515747,0.42113916,105750.0,105740.0,0.7670245]
[1748903515967,0.43000411,105750.0,105740.0,0.7670245]
[1748903516176,0.43059488,105750.0,105740.0,0.7670245]
[1748903516396,0.43059479,105750.0,105740.0,0.7670245]
[1748903517055,0.8775482,105750.0,105740.0,0.7670245]
[1748903517272,0.92305498,105750.0,105740.0,0.7670245]
[1748903517498,0.89646009,105750.0,105740.0,0.7670245]
[1748903517716,0.88700401,105750.0,105740.0,0.7670245]
[1748903517947,0.89646,105750.0,105740.0,0.7670245]
[1748903518408,0.90473471,105750.0,105740.0,0.7670245]
[1748903518620,0.88700401,105750.0,105740.0,0.7670245]
[1748903518842,0.91419071,105750.0,105740.0,0.7670245]
[1748903519070,1.10390672,105750.0,105740.0,0.33571126]
[1748903519328,0.89646116,105750.0,105740.0,0.75756779]
[1748903519770,1.10390829,105750.0,105740.0,0.74811126]
[1748903519990,1.06667483,105750.0,105740.0,0.73865446]
[1748903520207,1.06667483,105750.0,105740.0,0.23040016]
[1748903520437,1.06667483,105750.0,105740.0,0.66171419]
[1748903520884,0.61972142,105750.0,105740.0,0.66171419]
[1748903521105,1.06667483,105750.0,105740.0,0.24931419]
[1748903521325,1.06667483,105750.0,105740.0,0.63330318]
[1748903521538,1.07554043,105750.0,105740.0,0.13304]
[1748903521758,1.09327181,105750.0,105740.0,0.23040033]
[1748903521982,1.08440596,105750.0,105740.0,0.64276033]
[1748903522199,1.08440596,105750.0,105740.0,0.23985731]
[1748903522418,1.08440596,105750.0,105740.0,0.65221739]
[1748903522649,1.09268159,105750.0,105740.0,0.65221739]
[1748903522866,1.10154749,105750.0,105740.0,0.23985739]
[1748903523294,1.10154749,105750.0,105740.0,0.65221739]
[1748903523520,1.09268159,105750.0,105740.0,0.23985739]
[1748903523738,1.11927929,105750.0,105740.0,0.65221739]
[1748903523955,0.64572818,105750.0,105740.0,0.67113099]
[1748903524178,1.09268159,105750.0,105740.0,0.66167428]
[1748903524406,1.10154737,105750.0,105740.0,0.66167428]
[1748903524641,1.18519281,105750.0,105740.0,0.0318]
[1748903524937,0.34,105740.0,105730.0,0.24115953]
[1748903525167,0.7964103,105740.0,105730.0,0.66297695]
[1748903525397,0.81414216,105740.0,105730.0,0.66297695]
[1748903525625,0.34945671,105740.0,105730.0,0.66297695]
[1748903525848,0.83354252,105740.0,105730.0,0.66297695]
[1748903526063,0.82408581,105740.0,105730.0,0.66297695]
[1748903526283,0.36767587,105740.0,105730.0,0.75883125]
[1748903526509,0.34886564,105740.0,105730.0,0.75883125]
[1748903526725,0.34886563,105740.0,105730.0,0.75883125]
[1748903526976,0.34,105740.0,105730.0,0.75883125]
[1748903528512,0.34886528,105740.0,105730.0,0.75883125]
[1748903528513,0.34,105740.0,105730.0,0.75883125]
[1748903532505,0.17806746,105750.0,105740.0,0.24991357]
[1748903532706,0.16842928,105750.0,105740.0,0.34576787]
[1748903532917,0.16842928,105750.0,105740.0,0.75808787]
[1748903533130,0.17788846,105750.0,105740.0,0.75808787]
[1748903533642,0.16842928,105750.0,105740.0,0.75808787]
[1748903533801,0.16842928,105750.0,105740.0,0.34576787]
[1748903534009,0.16822928,105750.0,105740.0,0.75808787]
[1748903534213,0.17777453,105750.0,105740.0,0.34576787]
[1748903534426,0.17777453,105750.0,105740.0,0.75808787]
[1748903534629,0.16822928,105750.0,105740.0,0.34576787]
[1748903535079,0.16822928,105750.0,105740.0,0.75808787]
[1748903535499,0.16822928,105750.0,105740.0,0.34576787]
[1748903535710,0.16822928,105750.0,105740.0,0.75808787]
[1748903537403,0.16822928,105750.0,105740.0,0.34576787]
[1748903537608,0.16822928,105750.0,105740.0,0.75804787]
[1748903538034,0.52589709,105750.0,105740.0,0.75804787]
[1748903538690,0.16822928,105750.0,105740.0,0.75804787]
[1748903542340,0.16822928,105750.0,105740.0,0.34576787]
[1748903542543,0.16822928,105750.0,105740.0,0.75800787]
[1748903544680,0.16822928,105750.0,105740.0,0.77254872]
[1748903546632,0.15622928,105750.0,105740.0,0.77254872]
[1748903547517,0.88102053,105750.0,105740.0,0.34576787]
[1748903547730,0.88102053,105750.0,105740.0,0.29445454]
[1748903547731,1.23993189,105750.0,105740.0,0.29445454]
[1748903547952,1.23993189,105750.0,105740.0,0.72548814]
[1748903547953,1.41960172,105750.0,105740.0,0.72548814]
[1748903548160,1.23993251,105750.0,105740.0,0.73494467]
[1748903548377,0.8822647,105750.0,105740.0,0.73494467]
[1748903548866,0.52459689,105750.0,105740.0,0.73494467]
[1748903549066,0.88226461,105750.0,105740.0,0.76624467]
[1748903549273,0.98123157,105750.0,105740.0,0.76624467]
[1748903550342,0.15622928,105750.0,105740.0,0.76624467]
[1748903550566,0.16568474,105750.0,105740.0,0.76624467]
[1748903551187,0.15622928,105750.0,105740.0,0.76624467]
[1748903552051,0.17514046,105750.0,105740.0,0.76624467]
[1748903552256,0.63177496,105750.0,105740.0,0.76620467]
[1748903552465,0.65009544,105750.0,105740.0,0.76620467]
[1748903552671,0.17454923,105750.0,105740.0,0.76620467]
[1748903552877,0.18341403,105750.0,105740.0,0.76620467]
[1748903553087,0.17454923,105750.0,105740.0,0.76620467]
[1748903553507,0.18400486,105750.0,105740.0,0.76620467]
[1748903553984,0.1928693,105750.0,105740.0,0.76620467]
[1748903554165,0.18400486,105750.0,105740.0,0.76620467]
[1748903554806,0.19346067,105750.0,105740.0,0.76620467]
[1748903555452,0.18400486,105750.0,105740.0,0.76620467]
[1748903555881,0.18341389,105750.0,105740.0,0.76620467]
[1748903556131,0.17454923,105750.0,105740.0,0.76620467]
[1748903556356,0.19286942,105750.0,105740.0,0.76620467]
[1748903556616,0.20291639,105750.0,105740.0,0.76620467]
[1748903556817,0.19346049,105750.0,105740.0,0.76620467]
[1748903557234,0.16509377,105750.0,105740.0,0.76620467]
[1748903557431,0.62172792,105750.0,105740.0,0.76620467]
[1748903557857,0.63118373,105750.0,105740.0,0.76620467]
[1748903558064,0.98004828,105750.0,105740.0,0.45528467]
[1748903558276,0.51454923,105750.0,105740.0,0.76620467]
[1748903558485,0.98950418,105750.0,105740.0,0.76620467]
[1748903558682,0.97118355,105750.0,105740.0,0.76620467]
[1748903559522,0.95227246,105750.0,105740.0,0.76620467]
[1748903559726,0.96113728,105750.0,105740.0,0.76620467]
[1748903559941,0.95227246,105750.0,105740.0,0.76620467]
[1748903560571,0.96113725,105750.0,105740.0,0.76620467]
[1748903560779,0.50509377,105750.0,105740.0,0.76620467]
[1748903561414,0.51395857,105750.0,105740.0,0.76620467]
[1748903561645,0.53286975,105750.0,105740.0,0.76620467]
[1748903561843,0.53346058,105750.0,105740.0,0.76620467]
[1748903562078,0.50509377,105750.0,105740.0,0.76620467]
[1748903562495,0.51454923,105750.0,105740.0,0.76620467]
[1748903562746,0.52341405,105750.0,105740.0,0.76620467]
[1748903563014,0.51395856,105750.0,105740.0,0.76620467]
[1748903563266,0.95227246,105750.0,105740.0,0.76620467]
[1748903563718,0.95227246,105750.0,105740.0,0.35412467]
[1748903563940,0.95227246,105750.0,105740.0,0.76616467]
[1748903564624,0.98004861,105750.0,105740.0,0.35412467]
[1748903564842,0.98004856,105750.0,105740.0,0.22697037]
[1748903565068,0.98004856,105750.0,105740.0,0.63897037]
[1748903565069,0.98950449,105750.0,105740.0,0.63897037]
[1748903565299,0.98063962,105750.0,105740.0,0.63897037]
[1748903565556,0.98950452,105750.0,105740.0,0.63897037]
[1748903566025,0.98063962,105750.0,105740.0,0.63897037]
[1748903567162,0.98950468,105750.0,105740.0,0.63897037]
[1748903567415,0.35891297,105740.0,105730.0,0.22204406]
[1748903567655,0.79604418,105740.0,105730.0,0.66241695]
[1748903567903,0.34,105740.0,105730.0,0.75827125]
[1748903568378,0.34886552,105740.0,105730.0,0.75827125]
[1748903568623,0.34,105740.0,105730.0,0.75827125]
[1748903569324,0.34886549,105740.0,105730.0,0.75827125]
[1748903569548,0.34,105740.0,105730.0,0.75827125]
[1748903569777,0.34886549,105740.0,105730.0,0.75827125]
[1748903570015,0.34945653,105740.0,105730.0,0.44743125]
[1748903570256,0.34,105740.0,105730.0,0.75827125]
[1748903570506,0.82441431,105740.0,105730.0,0.75827125]
[1748903570968,1.004692,105740.0,105730.0,0.19910193]
[1748903570990,1.004692,105740.0,105730.0,0.62051971]
[1748903571229,0.91536628,105740.0,105730.0,0.6299774]
[1748903571463,0.92423231,105740.0,105730.0,0.62051971]
[1748903571673,0.89645313,105740.0,105730.0,0.00048299]
[1748903571954,0.90555313,105740.0,105730.0,0.31128299]
[1748903572215,0.99806435,105740.0,105730.0,0.00048299]
[1748903572425,0.97096234,105740.0,105730.0,0.00048299]
[1748903572647,0.9798295,105740.0,105730.0,0.00048299]
[1748903572860,0.98869666,105740.0,105730.0,0.00048299]
[1748903573077,1.00785019,105740.0,105730.0,0.00048299]
[1748903573573,0.99875019,105740.0,105730.0,0.00048299]
[1748903573786,1.01715019,105740.0,105730.0,0.00048299]
[1748903574036,1.05983433,105740.0,105730.0,0.00048299]
[1748903574649,1.01715019,105740.0,105730.0,0.00048299]
[1748903575907,0.99875019,105740.0,105730.0,0.00048299]
[1748903576135,0.99875019,105740.0,105730.0,0.18964406]
[1748903576349,0.58435516,105740.0,105730.0,0.18964406]
[1748903576569,0.94220807,105740.0,105730.0,0.18964406]
[1748903576803,0.94220807,105740.0,105710.0,0.75585538]
[1748903576804,0.00945823,105720.0,105710.0,0.75585538]
[1748903577030,0.55753486,105730.0,105720.0,0.20809631]
[1748903577253,0.91538783,105730.0,105720.0,0.55069631]
[1748903577704,0.91538783,105730.0,105720.0,0.56961322]
[1748903577914,0.82425537,105730.0,105720.0,0.56961322]
[1748903578128,0.81538783,105730.0,105720.0,0.56961322]
[1748903578345,0.82425529,105730.0,105720.0,0.56961322]
[1748903578600,0.81538783,105730.0,105720.0,0.56961322]
[1748903579045,0.82484579,105730.0,105720.0,0.56961322]
[1748903579256,0.82484579,105730.0,105720.0,0.25881322]
[1748903579468,0.83371327,105730.0,105720.0,0.54119772]
[1748903579675,0.82484579,105730.0,105720.0,0.55065639]
[1748903579930,0.01891726,105720.0,105710.0,0.53153092]
[1748903580153,0.38622864,105720.0,105710.0,0.86120997]
[1748903580368,0.39568687,105720.0,105710.0,0.86120997]
[1748903580582,0.3862282,105720.0,105710.0,0.86120997]
[1748903581030,0.39568696,105720.0,105710.0,0.44940997]
[1748903581250,0.39568687,105720.0,105710.0,0.86120997]
[1748903581475,0.3862282,105720.0,105710.0,0.86120997]
[1748903581693,0.39509579,105720.0,105710.0,0.86120997]
[1748903581909,0.3862282,105720.0,105710.0,0.86120997]
[1748903582338,0.39568696,105720.0,105710.0,0.86120997]
[1748903582554,0.39568687,105720.0,105710.0,0.86120997]
[1748903582777,0.94212843,105720.0,105710.0,0.33463716]
[1748903583008,0.95099622,105720.0,105710.0,0.65485682]
[1748903583213,0.94212843,105720.0,105710.0,0.65485682]
[1748903583848,0.59314336,105720.0,105710.0,0.66431621]
[1748903584272,0.58427546,105720.0,105710.0,0.66431621]
[1748903584696,0.34,105710.0,105700.0,0.74966899]
[1748903584962,0.9248881,105710.0,105700.0,0.73502345]
[1748903585155,0.00946064,105700.0,105690.0,0.1986257]
[1748903585386,0.726234,105700.0,105690.0,0.65616254]
[1748903585819,0.91544875,105700.0,105690.0,0.33594154]
[1748903586053,0.73569526,105700.0,105690.0,0.65612263]
[1748903586333,0.73569526,105700.0,105690.0,0.52826851]
[1748903586334,0.92491001,105700.0,105690.0,0.52826851]
[1748903586563,0.92539285,105700.0,105690.0,0.52826851]
[1748903587014,0.71725673,105700.0,105690.0,0.53772951]
[1748903587242,0.69833581,105700.0,105690.0,0.35486381]
[1748903587451,0.69833581,105700.0,105690.0,0.66562381]
[1748903587890,0.70780679,105700.0,105690.0,0.66562381]
[1748903590296,0.34995382,105700.0,105690.0,0.66562381]
[1748903590938,0.34048284,105700.0,105690.0,0.66562381]
[1748903591589,0.34935121,105700.0,105690.0,0.66562381]
[1748903591811,0.34048284,105700.0,105690.0,0.66562381]
[1748903592015,0.00048284,105700.0,105690.0,0.66562381]
[1748903593127,0.35833581,105700.0,105690.0,0.66558381]
[1748903593337,0.00048284,105700.0,105690.0,0.66558381]
[1748903593473,0.00935103,105700.0,105690.0,0.66558381]
[1748903593683,0.00048284,105700.0,105690.0,0.66558381]
[1748903596590,0.00935107,105700.0,105690.0,0.66558381]
[1748903596794,0.00048284,105700.0,105690.0,0.66558381]
[1748903599281,0.00048284,105700.0,105690.0,0.76654381]
[1748903599613,0.35833581,105700.0,105690.0,0.76654381]
[1748903600033,0.38833581,105700.0,105690.0,0.76654381]
[1748903600467,0.03048284,105700.0,105690.0,0.76654381]
[1748903600687,0.38833581,105700.0,105690.0,0.76654381]
[1748903601790,0.38833581,105700.0,105690.0,0.76650381]
[1748903602842,0.03048284,105700.0,105690.0,0.35486381]
[1748903603046,0.03048284,105700.0,105690.0,0.76650381]
[1748903603249,0.03048284,105700.0,105690.0,0.45590381]
[1748903603465,0.03048284,105700.0,105690.0,0.76650381]
[1748903603676,0.39779583,105700.0,105690.0,0.76650381]
[1748903604296,0.38833581,105700.0,105690.0,0.35486381]
[1748903604523,0.39779574,105700.0,105690.0,0.76650381]
[1748903604719,0.40725594,105700.0,105690.0,0.35486381]
[1748903604925,0.39779574,105700.0,105690.0,0.76650381]
[1748903605132,0.40725585,105700.0,105690.0,0.76650381]
[1748903605569,0.04940288,105700.0,105690.0,0.76650381]
[1748903605782,0.40725585,105700.0,105690.0,0.76650381]
[1748903605985,0.40725585,105700.0,105690.0,0.25900951]
[1748903606187,0.77563689,105700.0,105690.0,0.56956951]
[1748903606398,0.76617634,105700.0,105690.0,0.56956951]
[1748903607229,0.38940288,105700.0,105690.0,0.56956951]
[1748903607433,0.38940297,105700.0,105690.0,0.56956951]
[1748903607638,0.74725594,105700.0,105690.0,0.56956951]
[1748903608308,0.75671631,105700.0,105690.0,0.5790306]
[1748903609050,0.74725594,105700.0,105690.0,0.5790306]
[1748903609322,0.75671623,105700.0,105690.0,0.5790306]
[1748903609575,0.75671605,105700.0,105690.0,0.5790306]
[1748903610452,0.75671596,105700.0,105690.0,0.2684706]
[1748903610654,0.75671596,105700.0,105690.0,0.5789906]
[1748903611601,0.37048284,105700.0,105690.0,0.6748449]
[1748903612307,0.73779574,105700.0,105690.0,0.6748449]
[1748903612535,0.72833581,105700.0,105690.0,0.6748449]
[1748903612771,0.73779574,105700.0,105690.0,0.6748449]
[1748903613009,0.72833581,105700.0,105690.0,0.6748449]
[1748903613926,0.37048284,105700.0,105690.0,0.6748449]
[1748903614159,0.72833581,105700.0,105690.0,0.6748449]
[1748903614825,0.37048284,105700.0,105690.0,0.3643249]
[1748903615066,0.03048284,105700.0,105690.0,0.7756849]
[1748903615956,0.03048284,105700.0,105690.0,1.14807872]
[1748903616391,0.03048284,105700.0,105690.0,0.79022575]
[1748903617147,0.03048284,105700.0,105690.0,1.14807872]
[1748903619501,0.00048284,105700.0,105690.0,1.11807872]
[1748903619958,0.00048284,105700.0,105690.0,0.80759872]
[1748903620214,0.00048284,105700.0,105690.0,0.76014575]
[1748903620459,0.00048284,105700.0,105690.0,0.64766575]
[1748903620735,0.00048284,105700.0,105690.0,1.05890575]
[1748903620977,0.00048284,105700.0,105690.0,1.05886575]
[1748903623773,0.00048284,105700.0,105690.0,1.41671872]
[1748903626346,0.34945742,105730.0,105720.0,0.21755472]
[1748903626570,0.72622568,105730.0,105720.0,0.72452902]
[1748903627146,0.72622559,105730.0,105720.0,0.72452902]
[1748903627356,0.73568346,105730.0,105720.0,0.72452902]
[1748903628330,0.72622559,105730.0,105720.0,0.72452902]
[1748903628525,0.73568337,105730.0,105720.0,0.72452902]
[1748903629547,0.92484444,105730.0,105720.0,0.21755472]
[1748903629757,0.73568337,105730.0,105720.0,0.62863472]
[1748903629980,0.74514124,105730.0,105720.0,0.62863472]
[1748903630189,0.72622559,105730.0,105720.0,0.62863472]
[1748903630363,0.74492788,105730.0,105720.0,0.62863472]
[1748903630772,0.72601232,105730.0,105720.0,0.21755472]
[1748903630986,0.70709739,105730.0,105720.0,0.75594902]
[1748903631194,0.71655472,105730.0,105720.0,0.75594902]
[1748903631761,0.70709739,105730.0,105720.0,0.75594902]
[1748903631993,0.71655481,105730.0,105720.0,0.75594902]
[1748903632826,0.70709739,105730.0,105720.0,0.75594902]
[1748903633398,0.70709739,105730.0,105720.0,0.34490902]
[1748903633638,0.70709739,105730.0,105720.0,0.75590902]
[1748903634729,0.71655472,105730.0,105720.0,0.44574902]
[1748903634932,0.70709739,105730.0,105720.0,0.75590902]
[1748903635136,0.71655463,105730.0,105720.0,0.75590902]
[1748903635361,0.73546974,105730.0,105720.0,0.75590902]
[1748903635566,0.73546965,105730.0,105720.0,0.75590902]
[1748903636020,0.74492743,105730.0,105720.0,0.75590902]
[1748903636233,0.73546965,105730.0,105720.0,0.75590902]
[1748903636437,0.93408859,105730.0,105720.0,0.3039507]
[1748903636660,0.74492752,105730.0,105720.0,0.72436902]
[1748903637101,0.73546965,105730.0,105720.0,0.72436902]
[1748903637337,0.75438521,105730.0,105720.0,0.73956902]
[1748903637549,0.75438512,105730.0,105720.0,0.73956902]
[1748903637759,0.72601205,105730.0,105720.0,0.75596902]
[1748903637976,0.73546974,105730.0,105720.0,0.75596902]
[1748903638621,0.74433651,105730.0,105720.0,0.75596902]
[1748903638839,0.72601205,105730.0,105720.0,0.34500902]
[1748903639049,0.73546974,105730.0,105720.0,0.75568902]
[1748903639277,0.74433651,105730.0,105720.0,0.75568902]
[1748903639496,0.72601205,105730.0,105720.0,0.75568902]
[1748903639723,0.70709739,105730.0,105720.0,0.75568902]
[1748903639976,0.71655463,105730.0,105720.0,0.75568902]
[1748903640388,0.72542132,105730.0,105720.0,0.75568902]
[1748903640604,0.72255463,105730.0,105720.0,0.75668902]
[1748903640810,0.73142132,105730.0,105720.0,0.75668902]
[1748903641017,0.72255463,105730.0,105720.0,0.75668902]
[1748903641458,0.36470166,105730.0,105720.0,0.75668902]
[1748903641675,0.35524442,105730.0,105720.0,0.75668902]
[1748903643185,0.72255472,105730.0,105720.0,0.44660902]
[1748903643443,0.72255472,105730.0,105720.0,0.75660902]
[1748903643444,0.73201232,105730.0,105720.0,0.75660902]
[1748903643689,0.72255472,105730.0,105720.0,0.75660902]
[1748903644194,0.37356853,105730.0,105720.0,0.75660902]
[1748903644436,0.72255472,105730.0,105720.0,0.75660902]
[1748903644613,0.74147001,105730.0,105720.0,0.75660902]
[1748903644888,0.73201223,105730.0,105720.0,0.75660902]
[1748903645127,0.74146992,105730.0,105720.0,0.75660902]
[1748903645589,0.73401223,105730.0,105720.0,0.75660902]
[1748903646010,0.74287902,105730.0,105720.0,0.75660902]
[1748903646215,0.75233671,105730.0,105720.0,0.75660902]
[1748903646417,0.73401223,105730.0,105720.0,0.75660902]
[1748903647033,0.74347001,105730.0,105720.0,0.75660902]
[1748903647239,0.74346992,105730.0,105720.0,0.75660902]
[1748903647459,0.75292779,105730.0,105720.0,0.75660902]
[1748903647667,0.74346992,105730.0,105720.0,0.75660902]
[1748903648074,0.74347001,105730.0,105720.0,0.75660902]
[1748903648284,0.75292788,105730.0,105720.0,0.34600902]
[1748903648486,0.74347001,105730.0,105720.0,0.75652902]
[1748903648687,0.75233682,105730.0,105720.0,0.75652902]
[1748903648894,0.74347001,105730.0,105720.0,0.75652902]
[1748903649513,0.73401232,105730.0,105720.0,0.75652902]
[1748903649720,0.74287904,105730.0,105720.0,0.75652902]
[1748903650105,0.73342151,105730.0,105720.0,0.75652902]
[1748903650546,0.72455472,105730.0,105720.0,0.75648902]
[1748903650773,0.71509739,105730.0,105720.0,0.75648902]
[1748903650978,0.72455472,105730.0,105720.0,0.34600902]
[1748903651179,0.72455472,105730.0,105720.0,0.77392226]
[1748903651382,0.72455472,105730.0,105720.0,0.75648902]
[1748903651588,0.72455472,105730.0,105720.0,0.77392221]
[1748903651791,0.72455472,105730.0,105720.0,0.79135542]
[1748903651995,0.72455472,105730.0,105720.0,0.77392221]
[1748903652213,0.73401232,105730.0,105720.0,0.77392221]
[1748903652418,0.73401223,105730.0,105720.0,0.79135547]
[1748903652625,0.73401223,105730.0,105720.0,0.77392221]
[1748903652830,0.75233671,105730.0,105720.0,0.77392221]
[1748903653041,0.73342151,105730.0,105720.0,0.77392221]
[1748903653254,0.73401232,105730.0,105720.0,0.77392221]
[1748903653475,0.35724442,105730.0,105720.0,0.77392221]
[1748903653683,0.71509739,105730.0,105720.0,0.77392221]
[1748903654095,0.72455472,105730.0,105720.0,0.77392221]
[1748903654301,0.71509739,105730.0,105720.0,0.77392221]
[1748903654504,0.73401241,105730.0,105720.0,0.77392221]
[1748903654715,0.72455481,105730.0,105720.0,0.77392221]
[1748903654922,0.73401241,105730.0,105720.0,0.77392221]
[1748903655101,0.72455481,105730.0,105720.0,0.77392221]
[1748903655350,0.73401241,105730.0,105720.0,0.77392221]
[1748903655702,0.72455481,105730.0,105720.0,0.77392221]
[1748903656353,0.7340125,105730.0,105720.0,0.77392221]
[1748903656900,0.73401232,105730.0,105720.0,0.77392221]
[1748903657318,0.72455481,105730.0,105720.0,0.77392221]
[1748903657523,0.7334215,105730.0,105720.0,0.77392221]
[1748903657732,0.73401241,105730.0,105720.0,0.77392221]
[1748903658165,0.72455481,105730.0,105720.0,0.77392221]
[1748903658609,0.752337,105730.0,105720.0,0.77392221]
[1748903658829,0.73401241,105730.0,105720.0,0.77392221]
[1748903659439,0.72455481,105730.0,105720.0,0.77392221]
[1748903659648,0.73401241,105730.0,105720.0,0.77392221]
[1748903659854,0.74347019,105730.0,105720.0,0.77392221]
[1748903660255,0.74287914,105730.0,105720.0,0.77392221]
[1748903660463,0.73401241,105730.0,105720.0,0.77392221]
[1748903661024,0.37615935,105730.0,105720.0,0.77392221]
[1748903661225,0.73401232,105730.0,105720.0,0.77392221]
[1748903661632,0.80836454,105730.0,105720.0,0.77392221]
[1748903661799,0.79949781,105730.0,105720.0,0.77392221]
[1748903662000,0.80836454,105730.0,105720.0,0.77392221]
[1748903662207,0.79949781,105730.0,105720.0,0.77392221]
[1748903662840,0.81723127,105730.0,105720.0,0.79135983]
[1748903663031,0.80836445,105730.0,105720.0,0.80879745]
[1748903663233,0.81723118,105730.0,105720.0,0.79135983]
[1748903663442,0.80836445,105730.0,105720.0,0.79135983]
[1748903663644,0.80777367,105730.0,105720.0,0.79135983]
[1748903664027,0.80836445,105730.0,105720.0,0.79135983]
[1748903664237,0.81723118,105730.0,105720.0,0.79135983]
[1748903664439,0.83614656,105730.0,105720.0,0.38087983]
[1748903664649,0.82727974,105730.0,105720.0,0.79115983]
[1748903664851,0.83680829,105730.0,105720.0,0.48147983]
[1748903665056,0.82735042,105730.0,105720.0,0.79115983]
[1748903665886,0.83621718,105730.0,105720.0,0.79115983]
[1748903666089,0.83680829,105730.0,105720.0,0.79115983]
[1748903666225,0.82735042,105730.0,105720.0,0.79115983]
[1748903666434,0.83621718,105730.0,105720.0,0.79115983]
[1748903666636,0.46949745,105730.0,105720.0,0.79115983]
[1748903666843,0.83621718,105730.0,105720.0,0.79115983]
[1748903667142,0.82735042,105730.0,105720.0,0.79115983]
[1748903667342,0.80843513,105730.0,105720.0,0.79115983]
[1748903667547,0.82675949,105730.0,105720.0,0.79115983]
[1748903667747,0.81789273,105730.0,105720.0,0.79115983]
[1748903668266,0.82675934,105730.0,105720.0,0.79115983]
[1748903668464,0.44112465,105730.0,105720.0,0.79115983]
[1748903668637,0.80843513,105730.0,105720.0,0.79115983]
[1748903668833,0.80784435,105730.0,105720.0,0.79115983]
[1748903669033,0.78952029,105730.0,105720.0,0.79115983]
[1748903669239,0.43166732,105730.0,105720.0,0.79115983]
[1748903669439,0.36611115,105730.0,105720.0,0.79115983]
[1748903672458,0.01686673,105730.0,105720.0,0.80570068]
[1748903672697,0.01686673,105730.0,105720.0,1.16355365]
[1748903672883,0.01686673,105730.0,105720.0,0.80570068]
[1748903673339,0.01086673,105730.0,105720.0,0.80470068]
[1748903673542,0.01386673,105730.0,105720.0,0.80470068]
[1748903673752,0.01086673,105730.0,105720.0,0.80470068]
[1748903673975,0.00886673,105730.0,105720.0,0.80470068]
[1748903674184,0.00886673,105730.0,105720.0,0.80570068]
[1748903674392,0.00886673,105730.0,105720.0,0.80870068]
[1748903674595,0.00886673,105730.0,105720.0,0.80770068]
[1748903675008,0.00986673,105730.0,105720.0,0.81470068]
[1748903677305,0.00986673,105730.0,105720.0,0.81422068]
[1748903678128,0.00986673,105730.0,105720.0,0.79967983]
[1748903678337,0.00986673,105730.0,105720.0,0.38987983]
[1748903678338,0.3677197,105730.0,105720.0,0.38987983]
[1748903678544,0.3677197,105730.0,105720.0,0.79967983]
[1748903678749,0.7077197,105730.0,105720.0,0.49019983]
[1748903678952,0.7077197,105730.0,105720.0,0.38987983]
[1748903679150,0.71717703,105730.0,105720.0,0.79963983]
[1748903679352,0.71717694,105730.0,105720.0,0.79963983]
[1748903679558,0.72604328,105730.0,105720.0,0.79963983]
[1748903679709,0.71658607,105730.0,105720.0,0.79963983]
[1748903679913,0.7077197,105730.0,105720.0,0.79963983]
[1748903680147,0.71658608,105730.0,105720.0,0.79963983]
[1748903680313,0.7077197,105730.0,105720.0,0.79963983]
[1748903681467,0.71658595,105730.0,105720.0,0.79963983]
[1748903681736,0.7077197,105730.0,105720.0,0.79963983]
[1748903682539,0.71658596,105730.0,105720.0,0.79963983]
[1748903682747,0.7077197,105730.0,105720.0,0.79959983]
[1748903683843,0.34986673,105730.0,105720.0,0.49019983]
[1748903684043,0.7077197,105730.0,105720.0,0.79959983]
[1748903685981,0.7077197,105730.0,105720.0,0.79955983]
[1748903686741,0.34986673,105730.0,105720.0,0.79955983]
[1748903686947,0.7077197,105730.0,105720.0,0.79955983]
[1748903689855,0.7077197,105730.0,105720.0,0.79951983]
[1748903691086,0.34986673,105730.0,105720.0,0.79951983]
[1748903691339,0.7077197,105730.0,105720.0,0.79951983]